bitfinex/quotes_BTCUSD_20260311
["timestamp","ask_amount","ask_price","bid_price","bid_amount"]
[1773192005607,0.0433183,70134.0,70125.0,0.07130124]
[1773192007533,0.00022001,70136.0,70124.0,0.04547061]
[1773192007761,0.04353831,70136.0,70123.0,0.00144]
[1773192007958,0.04353831,70136.0,70119.0,0.07130633]
[1773192008161,0.04353831,70136.0,70120.0,0.04691061]
[1773192009606,0.0433183,70134.0,70120.0,0.07130531]
[1773192009895,0.0433183,70134.0,70120.0,0.07274531]
[1773192010093,0.0433183,70134.0,70120.0,0.07130531]
[1773192010304,0.0433183,70134.0,70120.0,0.07274531]
[1773192010501,0.0433183,70134.0,70115.0,0.0715108]
[1773192011611,0.0433183,70132.0,70115.0,0.0715108]
[1773192013861,0.0433183,70129.0,70109.0,0.00144]
[1773192014001,0.0433183,70129.0,70106.0,0.000145]
[1773192014002,0.0433183,70127.0,70106.0,0.000145]
[1773192014202,0.0433183,70125.0,70106.0,0.07146547]
[1773192014537,0.0433183,70125.0,70106.0,0.000145]
[1773192015026,0.0433183,70125.0,70112.0,0.0002]
[1773192015433,0.0433183,70125.0,70112.0,0.00031188]
[1773192015434,0.00144,70124.0,70112.0,0.00031188]
[1773192015606,0.0727429,70124.0,70112.0,0.0716258]
[1773192015952,0.0447583,70123.0,70112.0,0.0716258]
[1773192017641,0.11606172,70123.0,70112.0,0.0716258]
[1773192017838,0.11462172,70123.0,70112.0,0.0716258]
[1773192017975,0.00144,70122.0,70112.0,0.0716258]
[1773192018382,0.14205577,70131.0,70113.0,0.04547061]
[1773192018598,0.00144,70128.0,70113.0,0.04547061]
[1773192019133,0.00144,70129.0,70115.0,0.04547061]
[1773192019307,0.07129426,70132.0,70115.0,0.04547061]
[1773192019515,0.00022001,70137.0,70115.0,0.04547061]
[1773192019912,0.09115472,70135.0,70115.0,0.04547061]
[1773192020112,0.04240953,70134.0,70115.0,0.04547061]
[1773192020489,0.00022001,70136.0,70115.0,0.04547061]
[1773192021070,0.07151007,70136.0,70116.0,0.07131039]
[1773192021247,0.1139196,70136.0,70117.0,0.04706494]
[1773192021635,0.04240953,70135.0,70117.0,0.04706494]
[1773192022331,0.04240953,70135.0,70117.0,0.04562494]
[1773192022543,0.04240953,70135.0,70118.0,0.00144]
[1773192022746,0.04240953,70135.0,70119.0,0.00144]
[1773192023152,0.07129209,70135.0,70118.0,0.07130836]
[1773192023375,0.04240953,70134.0,70119.0,0.00144]
[1773192023537,0.04240953,70134.0,70117.0,0.00144]
[1773192023733,0.04240953,70134.0,70115.0,0.07151124]
[1773192024632,0.04340953,70134.0,70115.0,0.07151124]
[1773192024844,0.04240953,70134.0,70115.0,0.07151124]
[1773192025273,0.04240953,70132.0,70115.0,0.07151124]
[1773192027272,0.07129514,70131.0,70113.0,0.07275337]
[1773192027610,0.04384953,70130.0,70113.0,0.07275337]
[1773192028720,0.04384953,70130.0,70113.0,0.07131337]
[1773192028926,0.04384953,70130.0,70112.0,0.00031188]
[1773192029331,0.04384953,70130.0,70112.0,0.07162628]
[1773192029539,0.04240953,70128.0,70112.0,0.07162628]
[1773192032082,0.04240953,70126.0,70112.0,0.07162628]
[1773192034508,0.07130124,70125.0,70112.0,0.07162628]
[1773192034711,0.00144,70124.0,70112.0,0.07162628]
[1773192036217,0.00144,70124.0,70112.0,0.07162565]
[1773192036629,0.07274316,70124.0,70112.0,0.07162565]
[1773192037439,0.07296317,70124.0,70112.0,0.07162565]
[1773192037616,0.04240953,70123.0,70107.0,0.0002]
[1773192037821,0.04250519,70123.0,70104.0,0.0002]
[1773192038026,0.04240953,70122.0,70104.0,0.0002]
[1773192038829,0.04240953,70122.0,70104.0,0.07152242]
[1773192039222,0.00144,70122.0,70106.0,0.04562494]
[1773192039416,0.14237574,70123.0,70106.0,0.04562494]
[1773192039591,0.00144,70122.0,70106.0,0.04562494]
[1773192039805,0.07274506,70122.0,70107.0,0.07131955]
[1773192039999,0.00144,70121.0,70108.0,0.04562494]
[1773192040406,0.07130506,70122.0,70108.0,0.00144]
[1773192040407,0.04240953,70120.0,70108.0,0.00144]
[1773192040961,0.04240953,70118.0,70108.0,0.00144]
[1773192041778,0.04240953,70116.0,70108.0,0.00144]
[1773192042402,0.04240953,70116.0,70105.0,0.0002]
[1773192042607,0.04240953,70116.0,70106.0,0.07132057]
[1773192042805,0.04240953,70116.0,70105.0,0.0002]
[1773192043470,0.04240953,70116.0,70105.0,0.07152145]
[1773192045341,0.07131141,70115.0,70105.0,0.0002]
[1773192045744,0.11372094,70115.0,70105.0,0.0002]
[1773192047018,0.07131141,70115.0,70105.0,0.0002]
[1773192047188,0.00144,70120.0,70106.0,0.04562494]
[1773192047385,0.07130734,70119.0,70108.0,0.04562494]
[1773192047957,0.07130734,70119.0,70105.0,0.0002]
[1773192047958,0.04240953,70118.0,70105.0,0.0002]
[1773192049412,0.04375024,70116.0,70105.0,0.0002]
[1773192051482,0.04375024,70116.0,70100.0,0.00187]
[1773192051483,0.04375024,70114.0,70096.0,0.00562]
[1773192051660,0.04375024,70112.0,70096.0,0.07695069]
[1773192052011,0.04375024,70111.0,70096.0,0.07695069]
[1773192052218,0.18605034,70111.0,70096.0,0.07695069]
[1773192052533,0.04375024,70109.0,70096.0,0.07695069]
[1773192052748,0.1423001,70109.0,70096.0,0.07695069]
[1773192052947,0.04375024,70112.0,70096.0,0.07695069]
[1773192053348,0.07131446,70112.0,70096.0,0.07695069]
[1773192053552,0.04475024,70111.0,70096.0,0.07695069]
[1773192053737,0.04375024,70111.0,70096.0,0.07695069]
[1773192054537,0.04375024,70111.0,70105.0,0.0002]
[1773192054733,0.04475024,70111.0,70105.0,0.0002]
[1773192055571,0.0713165,70110.0,70105.0,0.0002]
[1773192055780,0.04375024,70109.0,70105.0,0.0002]
[1773192055956,0.04375024,70105.0,70092.0,1e-08]
[1773192056155,0.04375024,70101.0,70090.0,0.0002]
[1773192057243,0.04375024,70101.0,70090.0,0.0003119]
[1773192057665,0.04375024,70099.0,70090.0,0.0003119]
[1773192057831,0.00144,70098.0,70090.0,0.0003119]
[1773192059126,0.07132162,70105.0,70092.0,0.04580279]
[1773192059329,0.07132116,70106.0,70092.0,0.04580279]
[1773192059330,0.00144,70106.0,70092.0,0.04580279]
[1773192059504,0.14363644,70110.0,70094.0,0.04580279]
[1773192059831,0.07131751,70109.0,70096.0,0.04580279]
[1773192060529,0.14219644,70110.0,70096.0,0.04580279]
[1773192060731,0.14219644,70110.0,70095.0,0.07133176]
[1773192060732,0.07131142,70115.0,70100.0,0.04580279]
[1773192060936,0.07131142,70115.0,70102.0,0.04580279]
[1773192061091,0.00144,70116.0,70102.0,0.04580279]
[1773192061092,0.07131078,70116.0,70102.0,0.04580279]
[1773192061491,0.11506102,70116.0,70102.0,0.04580279]
[1773192061704,0.07131078,70116.0,70102.0,0.04580279]
[1773192061902,0.07275002,70117.0,70104.0,0.04580279]
[1773192063515,0.11650026,70117.0,70104.0,0.04580279]
[1773192064611,0.04375024,70116.0,70101.0,0.07276498]
[1773192064816,0.04375024,70116.0,70092.0,0.04580279]
[1773192065038,0.04375024,70116.0,70094.0,0.04580279]
[1773192065506,0.04375024,70116.0,70095.0,0.00144]
[1773192065705,0.04375024,70116.0,70094.0,0.04580279]
[1773192065706,0.04375024,70116.0,70104.0,0.001]
[1773192065907,0.04375024,70116.0,70093.0,0.00144]
[1773192065908,0.04396444,70116.0,70093.0,0.00144]
[1773192066579,0.04396444,70116.0,70094.0,0.04580279]
[1773192066780,0.04375024,70114.0,70095.0,0.07133176]
[1773192066947,0.04375024,70114.0,70095.0,0.11713455]
[1773192067135,0.04375024,70114.0,70095.0,0.04580279]
[1773192067334,0.04375024,70114.0,70092.0,0.001]
[1773192067548,0.04375024,70114.0,70092.0,0.07377464]
[1773192067757,0.04396444,70114.0,70092.0,0.07277464]
[1773192068953,0.07131345,70113.0,70093.0,0.07153321]
[1773192069298,0.04375024,70112.0,70093.0,0.07153321]
[1773192069599,0.07131345,70113.0,70093.0,0.07153321]
[1773192069600,0.04375024,70110.0,70093.0,0.07153321]
[1773192070477,0.04415024,70110.0,70093.0,0.07153321]
[1773192071183,0.07131751,70109.0,70093.0,0.07153321]
[1773192071365,0.04375024,70108.0,70093.0,0.07153321]
[1773192073210,0.07131955,70107.0,70095.0,0.07133176]
[1773192074203,0.07131955,70107.0,70092.0,0.00144]
[1773192074204,0.07131955,70107.0,70079.0,0.04580279]
[1773192074399,0.04375024,70105.0,70084.0,0.07134284]
[1773192074800,0.04375024,70105.0,70085.0,0.07154186]
[1773192075230,0.04375024,70103.0,70085.0,0.11734465]
[1773192075429,0.07132464,70102.0,70085.0,0.07154186]
[1773192075632,0.04375024,70101.0,70086.0,0.04580279]
[1773192076749,0.04375024,70101.0,70095.0,0.0002]
[1773192077742,0.04375024,70099.0,70095.0,0.0002]
[1773192077954,0.04375024,70099.0,70083.0,0.07298383]
[1773192077955,0.04375024,70097.0,70068.0,0.0771783]
[1773192078152,0.04375024,70097.0,70074.0,0.072793]
[1773192078358,0.04375024,70097.0,70075.0,0.07218199]
[1773192078788,0.04375024,70097.0,70080.0,0.0002]
[1773192078939,0.04375024,70097.0,70075.0,0.00083]
[1773192079553,0.04475024,70097.0,70075.0,0.00083]
[1773192079757,0.07133074,70096.0,70075.0,0.07218206]
[1773192079978,0.04449828,70095.0,70076.0,0.07135073]
[1773192081515,0.04449828,70095.0,70071.0,0.04520042]
[1773192081516,0.04549828,70095.0,70050.0,0.00023]
[1773192081716,0.07134906,70078.0,70061.0,0.00144]
[1773192082036,0.04593828,70077.0,70061.0,0.00144]
[1773192082266,0.00125794,70077.0,70062.0,0.04520042]
[1773192082667,0.04575622,70077.0,70062.0,0.04520042]
[1773192082885,0.04585713,70077.0,70061.0,0.00144]
[1773192083275,0.04585713,70077.0,70061.0,0.04664042]
[1773192084159,0.04449828,70075.0,70061.0,0.04520042]
[1773192084999,0.04449828,70075.0,70060.0,0.08037355]
[1773192085206,0.04449828,70075.0,70060.0,0.0090069]
[1773192085783,0.04449828,70075.0,70070.0,0.0002]
[1773192086230,0.00010091,70077.0,70070.0,0.0002]
[1773192086526,0.11738964,70077.0,70070.0,0.0002]
[1773192086763,0.04449828,70076.0,70063.0,0.0002]
[1773192086890,0.04449828,70076.0,70063.0,0.07156386]
[1773192087721,0.00144,70075.0,70063.0,0.07156386]
[1773192087883,0.03737828,70075.0,70063.0,0.07156386]
[1773192088349,0.11585142,70074.0,70063.0,0.07156386]
[1773192088515,0.00244,70075.0,70063.0,0.07156386]
[1773192088880,0.04449828,70072.0,70060.0,0.0090069]
[1773192090398,0.04449828,70070.0,70060.0,0.0090069]
[1773192090591,0.07135619,70071.0,70060.0,0.0090069]
[1773192090592,0.04593828,70069.0,70060.0,0.0090069]
[1773192091810,0.04593828,70069.0,70060.0,0.0100069]
[1773192091966,0.04593828,70069.0,70060.0,0.0090069]
[1773192092366,0.07135925,70068.0,70060.0,0.0100069]
[1773192092569,0.00144,70069.0,70061.0,0.04520042]
[1773192092983,0.00010091,70077.0,70061.0,0.04520042]
[1773192093186,0.00144,70078.0,70061.0,0.04520042]
[1773192093406,0.00144,70078.0,70061.0,0.04557371]
[1773192093724,0.00144,70078.0,70061.0,0.00037329]
[1773192093978,0.00144,70078.0,70062.0,0.00144]
[1773192093979,0.04449828,70077.0,70062.0,0.00144]
[1773192094595,0.0713511,70076.0,70063.0,0.07136434]
[1773192094938,0.11584938,70076.0,70063.0,0.07136434]
[1773192096188,0.11584938,70076.0,70063.0,0.07236434]
[1773192096540,0.11584938,70076.0,70063.0,0.07136434]
[1773192096744,0.11584938,70076.0,70063.0,0.07236434]
[1773192099065,0.00144,70080.0,70064.0,0.04520042]
[1773192099215,0.04449828,70089.0,70064.0,0.04520042]
[1773192099564,0.00144,70088.0,70064.0,0.04520042]
[1773192099761,0.04449828,70087.0,70064.0,0.04520042]
[1773192100427,0.04449828,70087.0,70064.0,0.04620042]
[1773192101227,0.04449828,70085.0,70065.0,0.0713623]
[1773192101589,0.04449828,70085.0,70066.0,0.04520042]
[1773192103190,0.04449828,70085.0,70066.0,0.04620042]
[1773192103502,0.07134295,70084.0,70068.0,0.04520042]
[1773192103702,0.07134295,70084.0,70069.0,0.00144]
[1773192104256,0.07134295,70084.0,70069.0,0.04664042]
[1773192105554,0.07134295,70084.0,70070.0,0.07135721]
[1773192105888,0.07134295,70084.0,70070.0,0.11655763]
[1773192106359,0.07173583,70092.0,70071.0,0.04520042]
[1773192106491,0.00144,70087.0,70071.0,0.04520042]
[1773192106915,0.00022001,70084.0,70071.0,0.04520042]
[1773192107492,3.796e-05,70084.0,70072.0,0.07135517]
[1773192107721,3.796e-05,70084.0,70073.0,0.04520042]
[1773192109517,3.796e-05,70084.0,70074.0,0.07135314]
[1773192109722,3.796e-05,70084.0,70075.0,0.04507743]
[1773192111646,0.07133583,70091.0,70075.0,0.04507743]
[1773192111647,0.00144,70089.0,70077.0,0.04507743]
[1773192112053,0.04190499,70090.0,70077.0,0.04507743]
[1773192112258,0.00144,70089.0,70077.0,0.04507743]
[1773192113948,0.00144,70089.0,70079.0,0.04507743]
[1773192114463,0.00144,70090.0,70079.0,0.04507743]
[1773192115868,0.00022001,70084.0,70081.0,0.04507743]
[1773192116980,0.00062001,70092.0,70081.0,0.04507743]
[1773192117773,0.00062001,70092.0,70082.0,0.07134499]
[1773192118337,0.04190499,70091.0,70080.0,0.07134703]
[1773192118472,0.04190499,70091.0,70073.0,0.00144]
[1773192118663,0.04190499,70091.0,70067.0,0.04507743]
[1773192118862,0.04190499,70091.0,70068.0,0.04651743]
[1773192119191,0.04190499,70091.0,70070.0,0.04886583]
[1773192119403,0.04190499,70091.0,70070.0,0.09394326]
[1773192119808,0.07133685,70090.0,70072.0,0.07135517]
[1773192120008,0.04190499,70089.0,70072.0,0.07135517]
[1773192121315,0.04190499,70089.0,70072.0,0.07235517]
[1773192121497,0.04190499,70089.0,70072.0,0.07135517]
[1773192121896,0.07133888,70088.0,70072.0,0.07235517]
[1773192122118,0.04190499,70087.0,70066.0,0.07136041]
[1773192123138,0.00144,70086.0,70068.0,0.0002]
[1773192123332,0.04190499,70085.0,70068.0,0.0002]
[1773192123733,0.04190499,70085.0,70072.0,0.001]
[1773192123927,0.07134295,70084.0,70069.0,0.07135823]
[1773192124129,0.04190499,70083.0,70069.0,0.07135823]
[1773192125059,0.04190499,70083.0,70060.0,0.0092069]
[1773192125214,0.04190499,70079.0,70061.0,0.07193963]
[1773192125553,0.04190499,70077.0,70061.0,0.07193963]
[1773192125753,0.04190499,70077.0,70060.0,0.07136739]
[1773192126057,0.04190499,70075.0,70060.0,0.07136739]
[1773192126414,0.0713511,70076.0,70061.0,0.04507743]
[1773192126975,0.00144,70075.0,70061.0,0.04507743]
[1773192127676,0.04190499,70074.0,70061.0,0.04507743]
[1773192127875,0.04190499,70074.0,70058.0,0.07136739]
[1773192128097,0.04190499,70072.0,70058.0,0.07136739]
[1773192129729,0.07235334,70074.0,70058.0,0.07136739]
[1773192129969,0.07235334,70074.0,70061.0,0.04507743]
[1773192130164,0.07135334,70074.0,70062.0,0.07136536]
[1773192132244,0.00144,70075.0,70063.0,0.04507743]
[1773192132543,0.00037293,70077.0,70063.0,0.04507743]
[1773192134226,0.00037293,70077.0,70065.0,0.04507743]
[1773192135341,0.07195501,70092.0,70067.0,0.04886583]
[1773192135585,0.07133837,70089.0,70068.0,0.04507743]
[1773192135878,0.00144,70088.0,70070.0,0.04507743]
[1773192136081,0.04190499,70086.0,70070.0,0.04507743]
[1773192136386,0.04190499,70085.0,70071.0,0.07135619]
[1773192136745,0.04190499,70085.0,70071.0,0.11643362]
[1773192136963,0.0001184,70087.0,70072.0,0.04507743]
[1773192137149,0.04190499,70086.0,70072.0,0.04507743]
[1773192137993,0.04190499,70086.0,70071.0,0.07135619]
[1773192138240,0.04190499,70086.0,70071.0,0.11643362]
[1773192138406,0.00144,70088.0,70072.0,0.04507743]
[1773192139179,0.04334499,70088.0,70072.0,0.04507743]
[1773192139921,0.04234035,70087.0,70072.0,0.04507743]
[1773192140682,0.04234035,70087.0,70073.0,0.07135415]
[1773192141303,0.00022001,70091.0,70074.0,0.04081322]
[1773192141478,0.00144,70090.0,70074.0,0.04081322]
[1773192141714,0.00144,70090.0,70073.0,0.07135415]
[1773192141715,0.04378035,70090.0,70073.0,0.07135415]
[1773192144446,0.07133787,70089.0,70072.0,0.07135415]
[1773192144749,0.04234035,70088.0,70071.0,0.07135619]
[1773192147103,0.04234035,70086.0,70071.0,0.07135619]
[1773192149747,0.04234035,70084.0,70071.0,0.07135619]
[1773192149947,0.04378035,70084.0,70071.0,0.07135619]
[1773192150819,0.04378035,70084.0,70071.0,0.07279619]
[1773192151032,0.04378035,70084.0,70071.0,0.07135619]
[1773192151240,0.04378035,70084.0,70071.0,0.07279619]
[1773192151606,0.00144,70084.0,70071.0,0.07279619]
[1773192151802,0.00144,70084.0,70071.0,0.11360941]
[1773192155175,0.04234035,70083.0,70071.0,0.07279619]
[1773192156215,0.04234035,70083.0,70071.0,0.07299619]
[1773192160215,0.04234035,70082.0,70071.0,0.07299619]
[1773192162006,0.00144,70084.0,70067.0,0.07173291]
[1773192162209,0.00144,70084.0,70068.0,0.04081322]
[1773192162210,0.11368534,70083.0,70068.0,0.04081322]
[1773192163096,0.04234035,70082.0,70067.0,0.07173291]
[1773192164267,0.07134601,70081.0,70067.0,0.07173291]
[1773192164421,0.04234035,70080.0,70067.0,0.07173291]
[1773192165448,0.04234035,70080.0,70066.0,0.0003516]
[1773192165654,0.04234035,70079.0,70066.0,0.0003516]
[1773192165867,0.04234035,70077.0,70066.0,0.0003516]
[1773192166220,0.0713511,70076.0,70066.0,0.0003516]
[1773192166419,0.04234035,70075.0,70066.0,0.0003516]
[1773192167541,0.001,70076.0,70066.0,0.07171225]
[1773192167744,0.001,70076.0,70067.0,0.04081322]
[1773192168163,0.07135023,70077.0,70066.0,0.07171225]
[1773192168382,0.03849628,70076.0,70066.0,0.07171225]
[1773192168561,0.03849628,70076.0,70066.0,0.07171288]
[1773192169015,0.07135023,70077.0,70066.0,0.07171288]
[1773192169186,0.07135023,70077.0,70063.0,0.0002]
[1773192169187,0.03849628,70076.0,70063.0,0.0002]
[1773192169387,0.03849628,70076.0,70063.0,0.07156428]
[1773192169768,0.03849628,70076.0,70063.0,0.0002]
[1773192169973,0.03849628,70076.0,70067.0,0.001]
[1773192170580,0.04260983,70074.0,70063.0,0.0002]
[1773192172548,0.07135415,70073.0,70063.0,0.07156431]
[1773192172746,0.04260983,70072.0,70063.0,0.07156431]
[1773192172892,0.04260983,70072.0,70058.0,0.07136932]
[1773192174019,0.04260983,70070.0,70058.0,0.07136932]
[1773192174763,0.11396753,70070.0,70063.0,0.0002]
[1773192176258,0.04260983,70069.0,70063.0,0.0002]
[1773192176459,0.04260983,70069.0,70059.0,0.07136838]
[1773192178323,0.11396807,70069.0,70059.0,0.07136838]
[1773192178774,0.11396807,70069.0,70058.0,0.07136932]
[1773192179284,0.04260983,70068.0,70058.0,0.07136932]
[1773192179823,0.04260983,70068.0,70057.0,0.0007516]
[1773192180181,0.07136026,70067.0,70057.0,0.0007516]
[1773192180547,0.04260983,70066.0,70050.0,0.00023]
[1773192180830,0.04260983,70059.0,70040.0,0.07859918]
[1773192181048,0.04260983,70059.0,70031.0,0.04098478]
[1773192181049,0.04887727,70060.0,70035.0,0.0001558]
[1773192181050,0.04260983,70049.0,70035.0,0.0001558]
[1773192181258,0.04887727,70050.0,70025.0,0.07163215]
[1773192181259,0.04260983,70047.0,70029.0,0.00144]
[1773192181550,0.04260983,70039.0,70021.0,0.00144]
[1773192181693,0.04090983,70037.0,70021.0,0.00144]
[1773192181900,0.03920979,70037.0,70022.0,0.04098478]
[1773192182340,0.03929488,70037.0,70022.0,0.04098478]
[1773192182534,0.11400168,70036.0,70023.0,0.0714051]
[1773192182745,0.04260983,70036.0,70023.0,0.0714051]
[1773192184106,8.509e-05,70037.0,70024.0,0.04098478]
[1773192184309,0.00144,70042.0,70024.0,0.03083478]
[1773192184510,0.00144,70042.0,70030.0,0.04887727]
[1773192184731,0.00144,70042.0,70031.0,0.04098478]
[1773192184936,0.00126787,70042.0,70031.0,0.04098478]
[1773192186214,0.04260983,70046.0,70031.0,0.04098478]
[1773192187081,0.07138216,70046.0,70031.0,0.04098478]
[1773192187279,0.07138216,70046.0,70024.0,0.00011178]
[1773192187280,0.04887727,70041.0,70024.0,0.00011178]
[1773192187462,0.04260983,70040.0,70025.0,0.00144]
[1773192188074,0.04260983,70040.0,70024.0,0.07151493]
[1773192188354,0.04260983,70040.0,70024.0,0.07151572]
[1773192189986,0.04260983,70038.0,70024.0,0.07151572]
[1773192190993,0.04404983,70038.0,70024.0,0.07151572]
[1773192191890,0.04404983,70038.0,70014.0,0.04098478]
[1773192191891,0.04260983,70032.0,70016.0,0.07141224]
[1773192192104,0.04260983,70029.0,70016.0,0.00010091]
[1773192192303,0.04260983,70027.0,70016.0,0.00010091]
[1773192193567,0.03260983,70027.0,70016.0,0.00010091]
[1773192194232,0.00144,70028.0,70016.0,0.00010091]
[1773192194553,0.00144,70028.0,70016.0,0.04108569]
[1773192195110,0.04260983,70033.0,70016.0,0.04108569]
[1773192195291,0.29372399,70065.0,70021.0,0.07677398]
[1773192195292,0.00144,70040.0,70021.0,0.07677398]
[1773192195493,0.04260983,70044.0,70022.0,0.04242478]
[1773192195693,0.08112189,70048.0,70022.0,0.04242478]
[1773192195694,1e-08,70073.0,70035.0,0.246166]
[1773192195896,0.0637223,70084.0,70061.0,0.04098478]
[1773192196108,0.0637223,70084.0,70064.0,0.07136332]
[1773192196440,0.04404983,70083.0,70064.0,0.07136332]
[1773192196821,0.07156313,70084.0,70064.0,0.07136332]
[1773192196822,0.00022001,70084.0,70070.0,0.04887727]
[1773192197024,0.00022001,70084.0,70071.0,0.04098478]
[1773192197025,0.00059342,70084.0,70071.0,0.04098478]
[1773192198096,0.00059342,70084.0,70072.0,0.07135517]
[1773192198341,0.00059342,70084.0,70072.0,0.11233995]
[1773192198844,0.00059342,70084.0,70072.0,0.07135517]
[1773192199143,0.00059342,70084.0,70073.0,0.04098478]
[1773192199531,0.00144,70083.0,70073.0,0.04452698]
[1773192199732,0.00144,70083.0,70073.0,0.04490039]
[1773192200080,0.00144,70083.0,70073.0,0.00037341]
[1773192200281,0.00144,70083.0,70073.0,0.07172677]
[1773192200632,0.00144,70083.0,70066.0,0.07136065]
[1773192200633,0.04431604,70082.0,70066.0,0.07136065]
[1773192200962,0.04468945,70082.0,70067.0,0.14098156]
[1773192201165,0.04468945,70082.0,70066.0,0.07136065]
[1773192201363,0.04468945,70082.0,70066.0,0.11588763]
[1773192205667,0.04468945,70082.0,70053.0,0.11289984]
[1773192205668,0.04431604,70081.0,70055.0,0.04452698]
[1773192205882,0.04431604,70081.0,70057.0,0.04452698]
[1773192206074,0.04431604,70081.0,70054.0,0.07137351]
[1773192206075,0.04431604,70081.0,70059.0,0.04452698]
[1773192206777,0.04431604,70081.0,70061.0,0.04452698]
[1773192206987,0.0092369,70100.0,70070.0,0.14663958]
[1773192207276,1e-08,70091.0,70072.0,0.04452698]
[1773192207473,1e-08,70091.0,70074.0,0.04452698]
[1773192207670,1e-08,70091.0,70076.0,0.04452698]
[1773192208050,0.00144,70090.0,70077.0,0.14063331]
[1773192208372,0.00144,70090.0,70078.0,0.04452698]
[1773192208727,0.00144,70090.0,70080.0,0.04452698]
[1773192210360,0.00144,70090.0,70080.0,0.04412698]
[1773192210799,0.00144,70090.0,70082.0,0.04452698]
[1773192211004,0.00144,70090.0,70081.0,0.07134601]
[1773192211005,0.00144,70123.0,70091.0,0.04452698]
[1773192211254,0.00144,70123.0,70081.0,0.18424585]
[1773192211255,0.04431604,70118.0,70093.0,0.04452698]
[1773192212421,0.04442807,70118.0,70092.0,0.04452698]
[1773192212667,0.00144,70117.0,70094.0,0.04452698]
[1773192212820,0.00144,70117.0,70096.0,0.04452698]
[1773192213722,0.00144,70116.0,70096.0,0.04452698]
[1773192214204,0.04431604,70115.0,70096.0,0.04452698]
[1773192214699,0.00584001,70124.0,70096.0,0.04452698]
[1773192214913,0.00584001,70124.0,70104.0,0.04452698]
[1773192215043,0.00584001,70124.0,70104.0,0.04596698]
[1773192217235,0.00584001,70124.0,70105.0,0.07132158]
[1773192217386,0.04575604,70123.0,70106.0,0.04452698]
[1773192219191,0.0727435,70123.0,70105.0,0.07132158]
[1773192219403,0.04431604,70122.0,70102.0,0.07132459]
[1773192221218,0.07130531,70121.0,70102.0,0.07132459]
[1773192221418,0.04431604,70120.0,70102.0,0.07117276]
[1773192223954,0.04431604,70119.0,70102.0,0.07117276]
[1773192224181,0.04431604,70119.0,70103.0,0.1406193]
[1773192224302,0.04431604,70119.0,70104.0,0.1406193]
[1773192224506,0.04431604,70119.0,70105.0,0.1406193]
[1773192224758,0.04431604,70119.0,70106.0,0.1406193]
[1773192225066,0.04431604,70119.0,70102.0,0.07117276]
[1773192225367,0.04431604,70119.0,70103.0,0.25379471]
[1773192225572,0.04431604,70119.0,70105.0,0.07132158]
[1773192225913,0.04431604,70119.0,70106.0,0.14089487]
[1773192226122,0.04431604,70119.0,70107.0,0.14089487]
[1773192226270,0.04431604,70119.0,70105.0,0.07132158]
[1773192226271,0.04431604,70119.0,70108.0,0.14089487]
[1773192226457,0.04431604,70119.0,70109.0,0.14089487]
[1773192226660,0.04431604,70119.0,70110.0,0.14089487]
[1773192226862,0.04431604,70119.0,70106.0,0.07132025]
[1773192227065,0.04431604,70119.0,70107.0,0.14092094]
[1773192227259,0.04431604,70119.0,70108.0,0.14092094]
[1773192227499,0.04431604,70119.0,70106.0,0.07132025]
[1773192227500,0.04431604,70119.0,70109.0,0.14092094]
[1773192227701,0.04431604,70119.0,70110.0,0.14092094]
[1773192227865,0.04431604,70119.0,70104.0,0.07132191]
[1773192228064,0.04453605,70119.0,70104.0,0.07132191]
[1773192228339,0.07130836,70118.0,70100.0,0.18470604]
[1773192228505,0.04180166,70117.0,70100.0,0.00048]
[1773192228706,0.04180166,70115.0,70100.0,0.07180665]
[1773192229261,0.04180166,70115.0,70100.0,0.00048]
[1773192229466,0.04180166,70115.0,70100.0,0.07180648]
[1773192229676,0.04180166,70115.0,70100.0,0.00048]
[1773192229872,0.04180166,70115.0,70096.0,0.00031203]
[1773192229873,0.04180166,70115.0,70096.0,0.0716425]
[1773192231169,0.07131243,70114.0,70096.0,0.0716425]
[1773192231394,0.04479455,70113.0,70096.0,0.0716425]
[1773192232017,0.00022001,70119.0,70100.0,0.1465159]
[1773192232235,0.00022001,70119.0,70097.0,0.04338061]
[1773192232236,0.04479455,70114.0,70097.0,0.07132972]
[1773192233698,0.04479455,70113.0,70097.0,0.07132972]
[1773192233947,0.04479455,70113.0,70096.0,0.07164175]
[1773192234148,0.04479455,70113.0,70096.0,0.18454159]
[1773192235338,0.04479455,70113.0,70097.0,0.11289984]
[1773192235732,0.07131439,70113.0,70097.0,0.18422887]
[1773192235916,0.04479455,70112.0,70097.0,0.18422887]
[1773192236244,0.04479455,70112.0,70099.0,0.11289984]
[1773192236690,0.04479455,70112.0,70060.0,1.10051032]
[1773192236691,0.1465159,70110.0,70087.0,0.16934976]
[1773192236891,0.04479455,70108.0,70085.0,0.07134176]
[1773192237216,0.04479455,70106.0,70084.0,0.07134224]
[1773192237764,0.04479455,70104.0,70085.0,0.07134191]
[1773192239550,0.04579455,70104.0,70085.0,0.07134191]
[1773192239841,0.04479455,70103.0,70089.0,0.14145214]
[1773192240046,0.04479455,70103.0,70088.0,0.07153884]
[1773192240251,0.04479455,70103.0,70089.0,0.14147457]
[1773192240448,0.04479455,70101.0,70088.0,0.07153884]
[1773192240654,0.04479455,70101.0,70089.0,0.14147453]
[1773192240826,0.04479455,70101.0,70088.0,0.0002]
[1773192241024,0.04479455,70101.0,70089.0,0.14144292]
[1773192241235,0.04623455,70100.0,70088.0,0.0002]
[1773192241834,0.0004,70092.0,70088.0,0.0002]
[1773192242040,0.00144,70091.0,70088.0,0.0002]
[1773192242242,0.00144,70091.0,70088.0,0.07153877]
[1773192242499,0.00144,70091.0,70072.0,0.0002]
[1773192242500,0.04479455,70090.0,70072.0,0.0002]
[1773192242664,0.04479455,70090.0,70073.0,0.14150067]
[1773192242903,0.04479455,70090.0,70068.0,0.07697866]
[1773192242904,0.04479455,70090.0,70069.0,0.04338061]
[1773192243079,0.00144,70089.0,70069.0,0.04338061]
[1773192243581,0.04479455,70089.0,70080.0,0.0002]
[1773192243736,0.00144,70088.0,70080.0,0.0002]
[1773192243939,0.04623455,70088.0,70080.0,0.0002]
[1773192244355,0.00144,70087.0,70080.0,0.0002]
[1773192244787,0.04479455,70088.0,70080.0,0.0002]
[1773192244997,0.00144,70087.0,70080.0,0.0002]
[1773192245524,0.00144,70086.0,70080.0,0.0002]
[1773192245847,0.04579455,70088.0,70080.0,0.0002]
[1773192246048,0.00144,70087.0,70080.0,0.0002]
[1773192248481,0.00244,70087.0,70080.0,0.0002]
[1773192248869,0.00344,70087.0,70080.0,0.0002]
[1773192249068,0.07133715,70090.0,70080.0,0.0002]
[1773192249362,0.00144,70086.0,70080.0,0.0002]
[1773192249961,0.00144,70085.0,70080.0,0.0002]
[1773192250368,0.00144,70084.0,70080.0,0.0002]
[1773192254256,0.04479455,70083.0,70066.0,0.07136073]
[1773192254578,0.04479455,70083.0,70068.0,0.00599341]